fUST/lending_fUST_20241014
["ID","MTS","AMOUNT","RATE_DAILY","PERIOD"]
[340230753,1728881442689,-150.733237,0.000247,2]
[340230754,1728881442698,-199.058496,0.0002474,2]
[340230755,1728881442707,-190.905463,0.0002479,2]
[340230756,1728881442716,-324.7833813,0.000248,2]
[340230757,1728881442727,-173.11237323,0.000248,7]
[340230758,1728881442736,-199.058496,0.00024805,2]
[340230759,1728881442746,-1775.58207307,0.00024831,2]
[340230760,1728881442756,-19463.3321607,0.0002485,3]
[340230761,1728881442767,-19463.3321607,0.00024851,3]
[340230762,1728881442777,-200.049365,0.0002486,7]
[340230763,1728881442786,-200.049365,0.0002486,7]
[340230764,1728881442795,-154.642377,0.0002486,7]
[340230765,1728881442804,-151.0,0.0002486,7]
[340230766,1728881442814,-169.350901,0.0002486,7]
[340230767,1728881442823,-151.0,0.0002486,7]
[340230768,1728881442833,-169.350901,0.0002486,7]
[340230769,1728881442842,-151.0,0.0002486,7]
[340230770,1728881442852,-151.0,0.0002486,7]
[340230771,1728881442862,-151.0,0.0002486,7]
[340230772,1728881442871,-151.0,0.0002486,7]
[340230773,1728881442880,-151.0,0.0002486,2]
[340230774,1728881442890,-151.0,0.0002486,7]
[340230775,1728881442899,-151.0,0.0002486,7]
[340230776,1728881442909,-151.0,0.0002486,7]
[340230777,1728881442918,-178.034782,0.0002486,7]
[340230778,1728881442927,-151.0,0.0002486,7]
[340230779,1728881442937,-151.0,0.0002486,7]
[340230780,1728881442946,-264.740373,0.0002486,7]
[340230781,1728881442956,-264.740373,0.0002486,7]
[340230782,1728881442965,-151.0,0.0002486,7]
[340230783,1728881443053,-151.0,0.0002486,7]
[340230784,1728881443063,-151.0,0.0002486,3]
[340230785,1728881443073,-151.0,0.0002486,3]
[340230786,1728881443082,-168.490775,0.0002486,7]
[340230787,1728881443091,-200.049365,0.00024861,7]
[340230789,1728881443101,-200.049365,0.00024861,7]
[340230790,1728881443110,-151.0,0.00024861,7]
[340230791,1728881443120,-169.350901,0.00024861,7]
[340230792,1728881443129,-151.0,0.00024861,7]
[340230795,1728881443138,-169.350901,0.00024861,7]
[340230797,1728881443147,-151.0,0.00024861,7]
[340230800,1728881443156,-151.0,0.00024861,7]
[340230802,1728881443166,-151.0,0.00024861,7]
[340230804,1728881443175,-151.0,0.00024861,7]
[340230806,1728881443184,-267.482828,0.00024861,2]
[340230808,1728881443194,-151.0,0.00024861,7]
[340230811,1728881443203,-151.0,0.00024861,7]
[340230814,1728881443213,-151.0,0.00024861,7]
[340230817,1728881443222,-225.90616,0.00024861,7]
[340230818,1728881443232,-264.740373,0.00024861,7]
[340230820,1728881443242,-264.740373,0.00024861,7]
[340230821,1728881443254,-263.126396,0.00024861,7]
[340230822,1728881443263,-151.0,0.00024861,3]
[340230823,1728881443273,-151.0,0.00024861,3]
[340230825,1728881443283,-151.989111,0.0002487,7]
[340230826,1728881443293,-151.0,0.0002487,5]
[340230827,1728881443302,-151.0,0.0002487,5]
[340230828,1728881443312,-151.0,0.0002487,7]
[340230829,1728881443322,-151.0,0.0002487,7]
[340230830,1728881443332,-151.0,0.0002487,7]
[340230831,1728881443343,-151.0,0.0002487,7]
[340230832,1728881443353,-151.0,0.0002487,7]
[340230833,1728881443368,-151.0,0.0002487,7]
[340230834,1728881443378,-229.374882,0.0002487,7]
[340230835,1728881443388,-151.0,0.0002487,7]
[340230837,1728881443397,-151.0,0.0002487,7]
[340230839,1728881443407,-156.539686,0.0002487,7]
[340230841,1728881443421,-151.0,0.0002487,7]
[340230842,1728881443431,-151.0,0.0002487,7]
[340230843,1728881443441,-151.0,0.0002487,7]
[340230845,1728881443451,-238.608718,0.0002487,7]
[340230847,1728881443462,-151.0,0.0002487,7]
[340230848,1728881443472,-151.0,0.0002487,7]
[340230849,1728881443482,-199.058496,0.0002487,2]
[340230850,1728881443492,-259.19413,0.00024871,7]
[340230851,1728881443501,-151.0,0.00024871,7]
[340230853,1728881443511,-275.630295,0.00024871,7]
[340230854,1728881443521,-151.0,0.00024871,7]
[340230855,1728881443531,-151.0,0.00024871,7]
[340230856,1728881443542,-239.527841,0.00024871,7]
[340230857,1728881443552,-239.527841,0.00024871,7]
[340230858,1728881443562,-285.390694,0.00024871,7]
[340230859,1728881443572,-6487.77738689,0.00024871,3]
[340230860,1728881443582,-151.0,0.00024881,7]
[340230861,1728881443591,-153.520903,0.00024881,7]
[340230862,1728881443602,-151.0,0.00024881,7]
[340230863,1728881443612,-151.0,0.00024881,7]
[340230864,1728881443623,-151.0,0.0002489,7]
[340230865,1728881443634,-155.60901,0.0002489,7]
[340230866,1728881443643,-167.435821,0.000249,3]
[340230867,1728881443652,-2344.62,0.000249,14]
[340230868,1728881443662,-150.112233,0.000249,2]
[340230869,1728881443672,-150.112233,0.000249,4]
[340230870,1728881443681,-150.112233,0.000249,2]
[340230871,1728881443691,-150.112233,0.000249,5]
[340230872,1728881443701,-150.112233,0.000249,4]
[340230873,1728881443711,-151.0,0.000249,7]
[340230874,1728881443720,-162.177276,0.000249,7]
[340230875,1728881443731,-151.0,0.00024911,7]
[340230876,1728881443741,-6487.77738689,0.00024921,3]
[340230877,1728881443751,-151.0,0.00024921,7]
[340230878,1728881443761,-151.0,0.00024921,5]
[340230879,1728881443771,-156.57171,0.00024921,7]
[340230880,1728881443780,-151.0,0.00024921,7]
[340230881,1728881443790,-151.0,0.00024921,7]
[340230882,1728881443800,-151.0,0.00024921,7]
[340230883,1728881443810,-200.049365,0.00024921,7]
[340230884,1728881443820,-200.049365,0.00024921,7]
[340230885,1728881443830,-151.0,0.00024921,7]
[340230886,1728881443839,-169.350901,0.00024921,7]
[340230887,1728881443849,-151.0,0.00024921,7]
[340230888,1728881443859,-169.350901,0.00024921,7]
[340230889,1728881443868,-151.0,0.00024921,7]
[340230890,1728881443877,-151.0,0.00024921,7]
[340230891,1728881443887,-151.0,0.00024921,7]
[340230892,1728881443898,-151.0,0.00024921,7]
[340230893,1728881443908,-151.0,0.00024921,7]
[340230894,1728881443917,-151.0,0.00024921,7]
[340230895,1728881443927,-264.740373,0.00024921,7]
[340230896,1728881443936,-264.740373,0.00024921,7]
[340230897,1728881443946,-151.0,0.00024921,3]
[340230898,1728881443957,-185.624768,0.00024921,3]
[340230899,1728881443966,-500.0,0.00024931,2]
[340230900,1728881443977,-500.0,0.00024931,2]
[340230901,1728881443988,-500.0,0.00024931,2]
[340230902,1728881443998,-500.0,0.00024931,2]
[340230903,1728881444008,-503.07863179,0.00024931,2]
[340230904,1728881444019,-151.0,0.00024931,7]
[340230905,1728881444028,-500.0,0.00024931,2]
[340230906,1728881444038,-500.0,0.00024931,2]
[340230907,1728881444048,-500.0,0.00024931,2]
[340230908,1728881444056,-500.0,0.00024931,2]
[340230909,1728881444066,-967.11,0.00024931,2]
[340230910,1728881444075,-500.0,0.00024931,2]
[340230911,1728881444085,-271.156936,0.00024931,5]
[340230912,1728881444098,-504.89448987,0.00024931,2]
[340230913,1728881444108,-500.0,0.00024931,2]
[340230914,1728881444118,-599.38,0.00024931,2]
[340230915,1728881444127,-500.0,0.00024931,2]
[340230916,1728881444137,-151.0,0.00024931,7]
[340230917,1728881444147,-161.01882684,0.00024931,2]
[340230918,1728881444156,-500.0,0.00024931,2]
[340230919,1728881444165,-500.0,0.00024931,2]
[340230920,1728881444174,-500.0,0.00024931,2]
[340230921,1728881444184,-500.0,0.00024931,2]
[340230922,1728881444193,-500.0,0.00024931,2]
[340230923,1728881444203,-151.0,0.00024931,7]
[340230924,1728881444212,-151.0,0.00024931,7]
[340230925,1728881444223,-1712.26,0.00024931,2]
[340230926,1728881444232,-359.63431134,0.00024931,2]
[340230927,1728881444241,-200.049365,0.00024931,7]
[340230928,1728881444250,-200.049365,0.00024931,7]
[340230929,1728881444260,-504.45589473,0.00024931,2]
[340230930,1728881444269,-500.0,0.00024931,2]
[340230931,1728881444279,-500.0,0.00024931,2]
[340230932,1728881444289,-244.98159485,0.00024931,2]
[340230933,1728881444298,-151.0,0.00024931,7]
[340230934,1728881444308,-610.96036493,0.00024931,2]
[340230935,1728881444318,-169.350901,0.00024931,7]
[340230936,1728881444327,-500.0,0.00024931,2]
[340230937,1728881444336,-151.0,0.00024931,7]
[340230938,1728881444346,-2000.0,0.00024931,2]
[340230939,1728881444355,-500.0,0.00024931,2]
[340230940,1728881444368,-169.350901,0.00024931,7]
[340230941,1728881444377,-500.0,0.00024931,2]
[340230942,1728881444386,-500.0,0.00024931,2]
[340230943,1728881444455,-500.0,0.00024931,2]
[340230944,1728881444465,-151.0,0.00024931,7]
[340230945,1728881444475,-254.264818,0.00024931,7]
[340230946,1728881444484,-7479.83,0.00024931,2]
[340230947,1728881444494,-151.0,0.00024931,7]
[340230948,1728881444503,-500.82799597,0.00024931,2]
[340230949,1728881444512,-1454.33419333,0.00024931,2]
[340230950,1728881444522,-151.0,0.00024931,7]
[340230951,1728881444531,-500.0,0.00024931,2]
[340230952,1728881444540,-196.326238,0.00024931,7]
[340230953,1728881444549,-500.0,0.00024931,2]
[340230954,1728881444559,-1855.65,0.00024931,2]
[340230955,1728881444568,-620.52,0.00024931,2]
[340230956,1728881444578,-261.406602,0.00024931,7]
[340230957,1728881444587,-264.740373,0.00024931,7]
[340230958,1728881444597,-500.0,0.00024931,2]
[340230959,1728881444606,-264.740373,0.00024931,7]
[340230960,1728881444615,-846.13,0.00024931,2]
[340230961,1728881444626,-500.0,0.00024931,2]
[340230962,1728881444635,-151.0,0.00024931,3]
[340230963,1728881444644,-500.0,0.00024931,2]
[340230964,1728881444653,-2757.36,0.00024931,2]
[340230965,1728881444662,-500.0,0.00024931,2]
[340230966,1728881444672,-2971.47,0.00024931,2]
[340230967,1728881444681,-500.0,0.00024931,2]
[340230968,1728881444691,-315.59617064,0.00024931,2]
[340230969,1728881444701,-500.0,0.00024931,2]
[340230970,1728881444710,-500.0,0.00024931,2]
[340230971,1728881444720,-30951.89,0.00024931,2]
[340230972,1728881444730,-151.0,0.00024931,7]
[340230973,1728881444739,-345.69,0.00024931,2]
[340230974,1728881444750,-500.0,0.00024931,2]
[340230975,1728881444760,-1033.23,0.00024931,2]
[340230976,1728881444769,-500.0,0.00024931,2]
[340230977,1728881444779,-151.0,0.00024931,7]
[340230978,1728881444789,-1442.73,0.00024931,2]
[340230979,1728881444798,-245.331185,0.00024931,7]
[340230980,1728881444808,-560.06927478,0.00024931,2]
[340230981,1728881444817,-239.527841,0.00024931,7]
[340230982,1728881444826,-500.0,0.00024931,2]
[340230983,1728881444836,-239.527841,0.00024931,7]
[340230984,1728881444845,-500.19535704,0.00024931,2]
[340230985,1728881444855,-2201.28,0.00024931,2]
[340230986,1728881444864,-500.0,0.00024931,2]
[340230987,1728881444873,-500.0,0.00024931,2]
[340230988,1728881444883,-199.058496,0.00024935,2]
[340230989,1728881444892,-832.93818469,0.00024943,2]
[340230990,1728881444902,-6487.77738689,0.00024963,3]
[340230991,1728881444913,-500.0,0.00024973,2]
[340230992,1728881444922,-380.30358884,0.00024973,2]
[340230993,1728881444932,-500.0,0.00024973,2]
[340230994,1728881444941,-500.0,0.00024973,2]
[340230995,1728881444951,-500.0,0.00024973,2]
[340230996,1728881444961,-502.76503536,0.00024973,2]
[340230997,1728881444970,-500.0,0.00024973,2]
[340230998,1728881444981,-19463.3321607,0.0002499,3]
[340230999,1728881444991,-1001.82033501,0.00025,15]
[340231000,1728881445001,-150.112233,0.00025,9]
[340231001,1728881445010,-1000.0,0.00025,5]
[340231002,1728881445020,-251567.72109871,0.00025,2]
[340231003,1728881445029,-25100.69479712,0.00025,2]
[340231004,1728881445042,-5322.09703583,0.00025,2]
[340231005,1728881445051,-500.00497235,0.00025,2]
[340231006,1728881445064,-151.0,0.00025,7]
[340231007,1728881445081,-151.0,0.00025,7]
[340231008,1728881445097,-151.0,0.00025,7]
[340231009,1728881445109,-200.049365,0.00025,7]
[340231010,1728881445126,-200.049365,0.00025,7]
[340231011,1728881445140,-151.0,0.00025,7]
[340231012,1728881445157,-169.350901,0.00025,7]
[340231013,1728881445173,-151.0,0.00025,7]
[340231014,1728881445190,-169.350901,0.00025,7]
[340231015,1728881445205,-151.0,0.00025,7]
[340231016,1728881445219,-151.0,0.00025,7]
[340231017,1728881445233,-151.0,0.00025,7]
[340231018,1728881445248,-264.740373,0.00025,7]
[340231019,1728881445259,-264.740373,0.00025,7]
[340231020,1728881445271,-150.112233,0.00025,3]
[340231021,1728881445285,-151.0,0.00025,3]
[340231022,1728881445297,-151.0,0.00025,7]
[340231023,1728881445311,-151.0,0.00025,7]
[340231024,1728881445325,-239.527841,0.00025,7]
[340231025,1728881445340,-239.527841,0.00025,7]
[340231026,1728881445357,-199.058496,0.00025,2]
[340231027,1728881445373,-500.99412882,0.00025073,2]
[340231028,1728881445384,-500.0,0.00025073,2]
[340231029,1728881445396,-500.30125347,0.00025073,2]
[340231030,1728881445412,-164.35513396,0.00025073,2]
[340231031,1728881445428,-500.0,0.00025073,2]
[340231032,1728881445442,-500.0,0.00025073,2]
[340231033,1728881445455,-150.1511019,0.00025073,2]
[340231034,1728881445468,-500.29325796,0.00025073,2]
[340231035,1728881445484,-500.0,0.00025073,2]
[340231036,1728881445494,-500.0,0.00025073,2]
[340231037,1728881445505,-43099.94898879,0.0002509,2]
[340231038,1728881445583,-62.25197,0.0002509,2]
[340231050,1728881446519,-5128.37,0.00024963,10]
[340231051,1728881446529,-40351.0557659,0.0002509,2]
[340231052,1728881446538,-151.0,0.0002509,7]
[340231053,1728881446547,-10.53603642,0.0002509,7]
[340231054,1728881513875,160.0,0.00023966,21]
[340231055,1728881514166,160.0,0.00023856,20]
[340231056,1728881514642,160.0,0.00023747,19]
[340231057,1728881514948,160.0,0.00023637,18]
[340231058,1728881515780,160.0,0.00023528,17]
[340231059,1728881516094,160.0,0.00023418,16]
[340231060,1728881516464,160.0,0.00023308,15]
[340231061,1728881516774,160.0,0.00023199,14]
[340231062,1728881517479,160.0,0.00023089,13]
[340231063,1728881517994,160.0,0.00022979,12]
[340231064,1728881518304,160.0,0.0002287,11]
[340231065,1728881518629,160.0,0.0002276,10]
[340231066,1728881518943,160.0,0.00022651,9]
[340231067,1728881519259,160.0,0.00022541,8]
[340231068,1728881520051,160.0,0.00022431,7]
[340231069,1728881520351,160.0,0.00022322,6]
[340231070,1728881520676,160.0,0.00022212,5]
[340231071,1728881520989,160.0,0.00022102,4]
[340231072,1728881521317,160.0,0.00021993,3]
[340231073,1728881618363,41711.0,0.00024,2]
[340231074,1728881667510,673.291207,0.00023836,2]
[340231075,1728881722591,1317.0606399,0.00023531,2]
[340231076,1728881736566,164.069545,0.00023724,2]
[340231077,1728881736792,164.069545,0.00023792,2]
[340231078,1728881737033,164.069545,0.00023861,2]
[340231079,1728881737258,164.069545,0.0002393,2]
[340231080,1728881737471,164.069545,0.00023998,2]
[340231081,1728881773903,173.726534,0.00023171,2]
[340231082,1728881803173,832.532865,0.00023445,2]
[340231083,1728881827380,4554.3265428,0.00023428,2]
[340231084,1728881834909,321.42369487,0.00027,60]
[340231085,1728881892262,3000.0,0.00023435,2]
[340231086,1728881905217,173.571911,0.00023435,2]
[340231087,1728881905455,173.571911,0.00023552,2]
[340231089,1728882025392,1472.51852086,0.00024001,2]
[340231090,1728882226371,158.534743,0.00023604,2]
[340231091,1728882226571,158.534743,0.0002368,2]
[340231092,1728882226843,158.534743,0.00023757,2]
[340231093,1728882227051,158.534743,0.00023834,2]
[340231094,1728882227254,158.534743,0.00023911,2]
[340231095,1728882227457,158.534743,0.00023988,2]
[340231096,1728882289391,370.065143,0.00023836,2]
[340231097,1728882309788,555.02191,0.00023442,2]
[340231099,1728882375175,165.45291,0.00023182,2]
[340231133,1728882632376,-158.534743,0.00024065,2]
[340231135,1728882632387,-160.0,0.00024076,22]
[340231137,1728882632396,-555.02191,0.00024127,2]
[340231138,1728882632407,-158.534743,0.00024142,2]
[340231139,1728882632416,-160.0,0.00024185,23]
[340231140,1728882632426,-158.534743,0.00024219,2]
[340231141,1728882632436,-160.0,0.00024295,24]
[340231142,1728882632445,-158.534743,0.00024295,2]
[340231143,1728882632455,-158.534743,0.00024372,2]
[340231144,1728882632465,-160.0,0.00024405,25]
[340231145,1728882632475,-175.11486193,0.00024405,5]
[340231146,1728882632484,-158.534743,0.00024449,2]
[340231147,1728882632494,-6746.95842459,0.000245,2]
[340231148,1728882632504,-158.534743,0.00024526,2]
[340231149,1728882632513,-300.0,0.00024536,2]
[340231150,1728882632523,-3230.5120934,0.00024536,2]
[340231151,1728882632533,-300.0,0.00024536,2]
[340231152,1728882632541,-2731.21120664,0.00024537,2]
[340231153,1728882632551,-1000.0,0.00024547,2]
[340231154,1728882632559,-191.29,0.00024547,2]
[340231155,1728882632569,-156.05419699,0.00024557,2]
[340231156,1728882632578,-158.534743,0.00024603,2]
[340231157,1728882632587,-267.33159471,0.00024636,2]
[340231158,1728882632597,-264.57557235,0.00024636,2]
[340231159,1728882632606,-276.82345327,0.00024636,2]
[340231160,1728882632615,-237.67459289,0.00024636,2]
[340231161,1728882632625,-231.56984908,0.00024636,2]
[340231162,1728882632634,-500.0,0.00024636,2]
[340231163,1728882632643,-285.47716094,0.00024636,2]
[340231164,1728882632653,-287.16592205,0.00024636,2]
[340231165,1728882632663,-500.0,0.00024636,2]
[340231166,1728882632672,-500.0,0.00024636,2]
[340231167,1728882632681,-487.31304667,0.00024636,2]
[340231168,1728882632692,-636.40976038,0.00024636,2]
[340231169,1728882632701,-165.25700518,0.00024636,2]
[340231170,1728882632712,-1101.61765813,0.00024636,2]
[340231171,1728882632722,-39233.61857768,0.00024637,3]
[340231172,1728882632734,-11446.49525756,0.00024637,3]
[340231191,1728882638594,-52166.46714976,0.00024637,3]
[340231193,1728882638604,-5190.22190988,0.00024637,3]
[340231195,1728882638613,-156.05419697,0.00024645,2]
[340231197,1728882638622,-102846.580985,0.00024647,3]
[340231199,1728882638632,-5190.22190988,0.00024647,3]
[340231201,1728882638641,-510.4477745,0.00024657,2]
[340231203,1728882638650,-549.43,0.00024657,2]
[340231205,1728882638659,-500.0,0.00024657,2]
[340231207,1728882638668,-500.0,0.00024657,2]
[340231208,1728882638678,-500.0,0.00024657,2]
[340231209,1728882638773,-500.0,0.00024657,2]
[340231210,1728882638790,-486.12509931,0.00024657,2]
[340231211,1728882638799,-500.0,0.00024657,2]
[340231212,1728882638808,-288.67940497,0.00024657,2]
[340231213,1728882638817,-500.0,0.00024657,2]
[340231214,1728882638826,-500.0,0.00024657,2]
[340231215,1728882638835,-500.0,0.00024657,2]
[340231216,1728882638844,-523.36218178,0.00024657,2]
[340231217,1728882638853,-500.0,0.00024657,2]
[340231218,1728882638862,-521.12494183,0.00024657,2]
[340231219,1728882638871,-500.0,0.00024657,2]
[340231220,1728882638880,-500.0,0.00024657,2]
[340231221,1728882638889,-500.0,0.00024657,2]
[340231222,1728882638899,-500.0,0.00024657,2]
[340231223,1728882638908,-500.0,0.00024657,2]
[340231224,1728882638918,-500.0,0.00024657,2]
[340231225,1728882638927,-537.58013691,0.00024657,2]
[340231226,1728882638936,-500.0,0.00024657,2]
[340231227,1728882638945,-500.0,0.00024657,2]
[340231228,1728882638955,-1500.0,0.00024657,2]
[340231229,1728882638964,-331.6802886,0.00024657,2]
[340231230,1728882638973,-500.0,0.00024657,2]
[340231231,1728882638982,-500.0,0.00024657,2]
[340231232,1728882638991,-500.0,0.00024657,2]
[340231233,1728882639000,-845.94,0.00024657,2]
[340231234,1728882639010,-514.69527853,0.00024657,2]
[340231235,1728882639018,-500.0,0.00024657,2]
[340231236,1728882639029,-500.0,0.00024657,2]
[340231237,1728882639038,-500.0,0.00024657,2]
[340231238,1728882639048,-500.0,0.00024657,2]
[340231239,1728882639057,-569.50436133,0.00024657,2]
[340231240,1728882639067,-500.0,0.00024657,2]
[340231241,1728882639076,-500.0,0.00024657,2]
[340231242,1728882639086,-560.06927478,0.00024657,2]
[340231243,1728882639095,-500.0,0.00024657,2]
[340231244,1728882639104,-500.0,0.00024657,2]
[340231245,1728882639114,-173.1134618,0.00024657,2]
[340231246,1728882639123,-500.0,0.00024657,2]
[340231247,1728882639133,-2000.0,0.00024657,2]
[340231248,1728882639142,-500.0,0.00024657,2]
[340231249,1728882639151,-219.67296674,0.00024657,2]
[340231250,1728882639160,-500.0,0.00024657,2]
[340231251,1728882639170,-500.0,0.00024657,2]
[340231252,1728882639179,-1119.01,0.00024657,2]
[340231253,1728882639188,-648.7758934,0.00024657,2]
[340231254,1728882639198,-500.0,0.00024657,2]
[340231255,1728882639207,-500.0,0.00024657,2]
[340231256,1728882639217,-7789.28,0.00024657,2]
[340231257,1728882639227,-508.32531663,0.00024657,2]
[340231258,1728882639236,-500.0,0.00024657,2]
[340231259,1728882639245,-184.43516841,0.00024657,2]
[340231260,1728882639255,-500.0,0.00024657,2]
[340231261,1728882639264,-500.0,0.00024657,2]
[340231262,1728882639274,-500.0,0.00024657,2]
[340231263,1728882639284,-505.70853836,0.00024657,2]
[340231264,1728882639294,-500.58411702,0.00024657,2]
[340231265,1728882639303,-500.0,0.00024657,2]
[340231266,1728882639312,-500.0,0.00024657,2]
[340231267,1728882639322,-508.2367957,0.00024657,2]
[340231268,1728882639331,-500.0,0.00024657,2]
[340231269,1728882639339,-2009.32,0.00024657,2]
[340231270,1728882639348,-500.0,0.00024657,2]
[340231271,1728882639358,-500.0,0.00024657,2]
[340231272,1728882639367,-262.10140109,0.00024657,2]
[340231273,1728882639376,-500.0,0.00024657,2]
[340231274,1728882639385,-500.0,0.00024657,2]
[340231275,1728882639394,-500.0,0.00024657,2]
[340231276,1728882639404,-500.0,0.00024657,2]
[340231277,1728882639413,-500.0,0.00024657,2]
[340231278,1728882639422,-500.0,0.00024657,2]
[340231279,1728882639431,-33547.71,0.00024657,2]
[340231280,1728882639440,-500.0,0.00024657,2]
[340231281,1728882639449,-500.0,0.00024657,2]
[340231282,1728882639458,-3116.88,0.00024657,2]
[340231283,1728882639467,-500.64337151,0.00024657,2]
[340231284,1728882639476,-500.0,0.00024657,2]
[340231285,1728882639485,-967.07,0.00024657,2]
[340231286,1728882639494,-201.43019428,0.00024657,2]
[340231287,1728882639503,-453.72710159,0.00024657,2]
[340231288,1728882639513,-3229.37,0.00024657,2]
[340231289,1728882639522,-500.0,0.00024657,2]
[340231290,1728882639534,-519.91744393,0.00024657,2]
[340231291,1728882639544,-500.0,0.00024657,2]
[340231292,1728882639553,-633.54042075,0.00024657,2]
[340231293,1728882639562,-500.0,0.00024657,2]
[340231294,1728882639571,-549.59678518,0.00024657,2]
[340231295,1728882639581,-1500.32,0.00024657,2]
[340231296,1728882639591,-515.00217731,0.00024657,2]
[340231297,1728882639600,-500.0,0.00024657,2]
[340231298,1728882639609,-520.26,0.00024657,2]
[340231299,1728882639619,-500.0,0.00024657,2]
[340231300,1728882639629,-2292.83,0.00024657,2]
[340231301,1728882639638,-200.0,0.00024658,2]
[340231302,1728882639648,-200.0,0.00024658,15]
[340231303,1728882639659,-660.0,0.00024658,2]
[340231304,1728882639668,-500.0,0.00024658,2]
[340231305,1728882639677,-500.0,0.00024658,2]
[340231306,1728882639686,-572.74685351,0.00024658,2]
[340231307,1728882639695,-51423.2904925,0.00024663,3]
[340231308,1728882639705,-2595.11095494,0.00024663,3]
[340231309,1728882639718,-500.0,0.00024673,2]
[340231310,1728882639727,-243.75048427,0.00024673,2]
[340231311,1728882639736,-500.0,0.00024673,2]
[340231312,1728882639746,-500.0,0.00024673,2]
[340231313,1728882639755,-338.50380149,0.00024673,2]
[340231314,1728882639765,-631.05790938,0.00024673,2]
[340231315,1728882639774,-500.0,0.00024673,2]
[340231316,1728882639786,-500.0,0.00024673,2]
[340231317,1728882639795,-500.0,0.00024673,2]
[340231318,1728882639805,-500.0,0.00024673,2]
[340231319,1728882639814,-501.58888967,0.00024673,2]
[340231320,1728882639823,-339.10500486,0.00024673,2]
[340231321,1728882639833,-500.0,0.00024673,2]
[340231322,1728882639842,-500.0,0.00024673,2]
[340231323,1728882639851,-500.0,0.00024673,2]
[340231324,1728882639861,-500.0,0.00024673,2]
[340231325,1728882639870,-502.52059306,0.00024673,2]
[340231326,1728882639879,-572.95506977,0.00024673,2]
[340231327,1728882639889,-399.23011131,0.00024673,2]
[340231328,1728882639898,-500.0,0.00024673,2]
[340231329,1728882639908,-500.0,0.00024673,2]
[340231330,1728882639919,-500.0,0.00024673,2]
[340231331,1728882639928,-200.27674956,0.00024673,2]
[340231332,1728882639937,-180.11866234,0.00024673,2]
[340231333,1728882639946,-158.534743,0.0002468,2]
[340231334,1728882639955,-156.05419697,0.00024733,2]
[340231335,1728882639964,-158.534743,0.00024757,2]
[340231336,1728882639974,-6746.9584246,0.00024776,2]
[340231337,1728882639983,-151.0,0.00024776,7]
[340231338,1728882639992,-151.0,0.00024776,7]
[340231339,1728882640001,-151.0,0.00024776,7]
[340231340,1728882640010,-151.0,0.00024776,7]
[340231341,1728882640020,-151.0,0.00024812,7]
[340231342,1728882640031,-151.0,0.00024812,7]
[340231343,1728882640040,-151.0,0.00024812,7]
[340231344,1728882640050,-151.0,0.00024812,7]
[340231345,1728882640059,-151.0,0.00024812,7]
[340231346,1728882640068,-151.989111,0.00024812,7]
[340231347,1728882640078,-151.0,0.00024812,7]
[340231348,1728882640088,-151.0,0.00024812,7]
[340231349,1728882640097,-151.0,0.00024812,7]
[340231350,1728882640106,-151.0,0.00024812,7]